bitfinex/quotes_SOLUSD_20240716
["timestamp","ask_amount","ask_price","bid_price","bid_amount"]
[1721094418115,15.35,158.23,158.15,15.6138]
[1721094418116,15.35,158.2,158.15,15.6138]
[1721094418290,6.3207,158.21,158.15,15.6138]
[1721094418491,6.3203,158.22,158.15,15.6138]
[1721094418701,30.75,158.25,158.17,6.3219]
[1721094419015,6.3201,158.23,158.18,6.3217]
[1721094419188,20.0,158.22,158.17,6.3222]
[1721094419393,26.3206,158.22,158.15,15.6138]
[1721094420089,26.3206,158.22,158.16,6.3223]
[1721094420388,20.0,158.22,158.18,6.3219]
[1721094420616,20.0,158.22,158.15,15.6138]
[1721094420827,6.3207,158.21,158.15,15.6138]
[1721094421023,20.0,158.2,158.12,6.3879]
[1721094421527,6.60236336,158.2,158.12,6.3879]
[1721094421708,20.0,158.19,158.13,6.3235]
[1721094422210,20.0,158.19,158.11,15.8123]
[1721094422211,38.99,158.19,158.11,22.1367]
[1721094422613,6.3223,158.17,158.11,22.1367]
[1721094423001,20.0,158.16,158.11,22.1367]
[1721094424545,26.3227,158.16,158.11,22.1367]
[1721094429206,20.0,158.16,158.11,15.8123]
[1721094429415,6.3239,158.13,158.08,12.471]
[1721094429616,20.0,158.12,158.04,6.3781]
[1721094430030,6.3251,158.1,158.05,6.3267]
[1721094431533,20.0,158.12,158.02,16.5309]
[1721094431833,26.59700863,158.12,158.02,16.5309]
[1721094432411,32.92130863,158.12,158.07,6.3262]
[1721094432811,6.3247,158.11,158.06,6.3266]
[1721094433028,26.3252,158.1,158.05,6.327]
[1721094433532,6.3252,158.1,158.05,6.327]
[1721094433927,6.3247,158.11,158.06,6.3266]
[1721094435030,6.3254,158.1,158.04,6.3271]
[1721094435435,6.326,158.08,158.02,6.3279]
[1721094435942,6.3263,158.07,158.02,6.3279]
[1721094437053,6.3259,158.09,158.01,18.901]
[1721094437259,25.58700863,158.12,158.01,18.901]
[1721094437423,38.99,158.11,158.01,18.901]
[1721094438137,48.99,158.11,158.02,1.26543955]
[1721094438339,6.3262,158.08,158.03,6.3279]
[1721094438721,18.99,158.1,158.04,6.3275]
[1721094438722,6.3255,158.09,158.04,6.3275]
[1721094438922,20.0,158.11,158.01,18.901]
[1721094439437,6.3258,158.09,158.04,6.3274]
[1721094439742,6.3258,158.09,158.01,18.901]
[1721094439743,6.3251,158.1,158.05,6.327]
[1721094440318,26.3247,158.11,158.06,6.3266]
[1721094440533,6.3252,158.1,158.01,18.901]
[1721094440736,20.0,158.11,158.01,18.901]
[1721094441130,26.325,158.11,158.06,6.3265]
[1721094441342,6.3255,158.09,158.01,18.901]
[1721094441536,20.0,158.11,158.02,6.3283]
[1721094441537,6.3264,158.07,158.02,6.3283]
[1721094441738,6.3264,158.07,158.03,6.3279]
[1721094441927,6.3259,158.08,158.03,6.3279]
[1721094443144,12.92397466,158.09,158.04,6.3274]
[1721094444243,15.4,158.08,158.02,15.4]
[1721094444449,15.4,158.08,158.04,6.3271]
[1721094444951,15.4,158.07,158.02,15.4]
[1721094445140,21.7274,158.05,158.01,18.901]
[1721094445338,21.7275,158.04,158.01,18.901]
[1721094445552,15.4,158.03,158.01,18.901]
[1721094446342,22.66,158.06,158.01,18.901]
[1721094447860,6.3275,158.04,158.01,18.901]
[1721094448045,47.8454,158.06,158.01,18.901]
[1721094449042,16.3333,158.06,158.01,18.901]
[1721094449240,62.73417466,158.09,158.01,18.901]
[1721094449241,12.92397466,158.09,158.03,6.3275]
[1721094449442,6.3266,158.07,158.01,25.2296]
[1721094449841,6.3266,158.07,158.02,6.3281]
[1721094450037,6.59847466,158.09,158.01,18.901]
[1721094450255,18.99,158.06,158.01,18.901]
[1721094450841,63.23277466,158.09,158.01,25.2297]
[1721094451156,6.3262,158.08,158.02,6.3282]
[1721094451353,6.3264,158.07,158.02,6.3282]
[1721094451751,6.3259,158.08,158.03,6.3279]
[1721094451967,6.59847466,158.09,158.01,18.901]
[1721094452147,6.59847466,158.09,158.01,34.6452]
[1721094452346,16.4137,158.11,158.01,34.6452]
[1721094452562,6.324,158.13,158.02,65.0]
[1721094452869,6.3243,158.12,158.07,6.3263]
[1721094453056,6.59703888,158.13,158.08,6.3258]
[1721094453768,6.3244,158.12,158.07,6.3262]
[1721094453971,6.3251,158.1,158.05,6.3268]
[1721094454549,12.92123888,158.13,158.02,50.82]
[1721094454775,12.92123888,158.13,158.03,45.0]
[1721094454959,12.92123888,158.13,158.08,6.3257]
[1721094455159,18.99,158.12,158.02,20.0]
[1721094455366,6.59703888,158.13,158.02,20.0]
[1721094455747,26.3243,158.12,158.02,20.0]
[1721094455947,26.3243,158.12,158.03,0.89671423]
[1721094456154,20.0,158.12,158.07,6.3259]
[1721094456362,20.0,158.12,158.08,6.3259]
[1721094456558,20.0,158.12,158.05,6.3268]
[1721094456870,18.99,158.12,158.05,6.3268]
[1721094457065,6.3254,158.1,158.04,6.3274]
[1721094457870,6.3254,158.1,158.05,6.327]
[1721094458348,6.3259,158.08,158.03,6.3275]
[1721094458548,6.3255,158.09,158.03,6.3275]
[1721094458771,6.3255,158.09,158.04,6.3273]
[1721094460077,6.3251,158.1,158.05,6.327]
[1721094460371,6.3247,158.11,158.05,6.327]
[1721094460672,6.3258,158.09,158.03,6.3278]
[1721094460865,18.99,158.1,158.02,6.3282]
[1721094461062,6.3266,158.07,158.02,6.3282]
[1721094461685,67.2536,158.09,158.03,6.3278]
[1721094463061,86.2436,158.09,158.03,6.3278]
[1721094463265,6.3261,158.08,158.03,6.3278]
[1721094463470,96.51607009,158.09,158.01,25.2293]
[1721094463657,6.3263,158.07,158.02,6.3283]
[1721094463851,67.52607009,158.09,158.03,6.3278]
[1721094464058,86.51607009,158.09,158.03,6.3278]
[1721094464264,67.52607009,158.09,158.03,6.3278]
[1721094464461,77.52607009,158.09,158.01,18.901]
[1721094464781,10.0,158.05,158.01,18.901]
[1721094464944,63.99,158.04,158.01,18.901]
[1721094465151,6.3282,158.03,158.01,18.901]
[1721094465863,45.0,158.04,158.01,18.901]
[1721094466450,6.3274,158.05,158.01,18.901]
[1721094467272,25.3175,158.04,158.01,18.901]
[1721094467481,18.99,158.04,158.01,18.901]
[1721094467775,6.3275,158.04,158.01,18.901]
[1721094468460,25.3175,158.04,158.01,18.901]
[1721094468657,30.82,158.08,158.07,6.3263]
[1721094468987,47.0777,158.27,158.08,22.6717]
[1721094469289,10.0,158.2,158.09,20.0]
[1721094469466,10.0,158.18,158.04,30.82]
[1721094469673,6.3227,158.16,158.1,6.325]
[1721094469994,25.3127,158.16,158.1,6.325]
[1721094470351,18.99,158.16,158.1,6.325]
[1721094470572,18.99,158.16,158.11,6.3246]
[1721094471281,18.99,158.15,158.1,6.325]
[1721094471987,25.3132,158.15,158.01,18.901]
[1721094472151,25.3132,158.15,158.02,45.0]
[1721094472579,25.3132,158.15,158.03,20.0]
[1721094472755,25.3132,158.15,158.04,45.0]
[1721094472963,56.1332,158.15,158.04,45.0]
[1721094473180,56.1332,158.15,158.09,6.3254]
[1721094474255,25.3135,158.14,158.04,45.0]
[1721094474455,25.3135,158.14,158.03,20.0]
[1721094474751,25.3135,158.14,158.02,20.0]
[1721094475178,18.99,158.14,158.02,20.0]
[1721094475362,6.324,158.13,158.02,20.0]
[1721094475764,25.3135,158.14,158.02,20.0]
[1721094476089,6.3243,158.12,158.06,6.3264]
[1721094476287,35.3143,158.12,158.06,6.3264]
[1721094476460,70.3148,158.11,158.06,6.3264]
[1721094476658,35.3155,158.09,158.02,6.3279]
[1721094476986,57.9148,158.09,158.03,6.3278]
[1721094477185,63.99,158.08,158.03,6.3278]
[1721094479060,63.99,158.08,158.04,6.3274]
[1721094479895,63.99,158.08,158.02,6.3279]
[1721094480899,25.3171,158.05,158.01,18.901]
[1721094481199,73.99,158.04,158.01,18.901]
[1721094481389,28.99,158.04,158.01,18.901]
[1721094483208,30.82,158.06,158.01,18.901]
[1721094483574,18.99,158.07,158.01,18.901]
[1721094484278,25.3166,158.07,158.01,25.2296]
[1721094484491,18.99,158.05,158.01,18.901]
[1721094484694,25.3177,158.04,158.01,18.901]
[1721094484997,6.3277,158.04,158.01,18.901]
[1721094485198,18.99,158.05,158.01,18.901]
[1721094485568,63.99,158.04,158.01,18.901]
[1721094485777,70.3178,158.04,158.01,18.901]
[1721094487697,35.3183,158.02,158.01,18.901]
[1721094487899,80.3183,158.02,158.01,18.901]
[1721094488196,70.3183,158.02,158.01,18.901]
[1721094488377,80.3183,158.02,158.01,18.901]
[1721094490092,96.4747,158.02,158.01,18.901]
[1721094490293,118.3274,158.02,158.01,2.2344]
[1721094490790,118.3274,158.02,158.01,0.0001]
[1721094490995,128.3274,158.02,158.01,0.0001]
[1721094491307,25.3187,158.01,158.0,10.01]
[1721094491474,70.3187,158.01,158.0,10.01]
[1721094491669,70.3187,158.01,157.84,16.6478]
[1721094491670,28.99,157.95,157.88,6.3335]
[1721094491879,6.3327,157.91,157.85,6.335]
[1721094492197,28.99,157.9,157.79,16.6478]
[1721094492413,6.334,157.88,157.79,16.6478]
[1721094492582,6.3344,157.87,157.82,7.1469379]
[1721094492986,18.99,157.89,157.82,0.8109379]
[1721094493505,6.3343,157.87,157.82,7.1471379]
[1721094493676,6.3343,157.87,157.82,0.8109379]
[1721094494193,18.99,157.87,157.82,7.1471379]
[1721094494501,18.99,157.87,157.82,0.8109379]
[1721094494704,6.3353,157.85,157.82,0.8109379]
[1721094494910,18.99,157.85,157.82,0.8109379]
[1721094495083,6.3359,157.83,157.82,0.8109379]
[1721094495796,25.3259,157.83,157.82,0.8109379]
[1721094496397,25.3259,157.83,157.64,15.366]
[1721094496398,18.99,157.77,157.64,15.366]
[1721094496681,18.99,157.78,157.72,6.3402]
[1721094496987,10.0,157.81,157.72,6.3402]
[1721094497189,6.3383,157.77,157.72,6.3402]
[1721094497388,10.0,157.81,157.73,6.3395]
[1721094497696,6.3371,157.81,157.76,6.3387]
[1721094497900,10.0,157.86,157.73,46.6458]
[1721094498507,18.99,157.83,157.75,6.3387]
[1721094498927,6.3363,157.83,157.73,46.6458]
[1721094499280,6.3363,157.83,157.74,75.82]
[1721094499808,25.0206,157.87,157.81,6.3366]
[1721094500103,18.99,157.89,157.77,30.82]
[1721094500307,6.3074,157.91,157.78,65.0]
[1721094500509,6.3338,157.89,157.83,6.3358]
[1721094500707,6.3349,157.86,157.8,6.3368]
[1721094500879,6.29581323,157.87,157.78,65.0]
[1721094501085,12.6404,157.91,157.84,6.3354]
[1721094501303,6.3327,157.91,157.85,6.335]
[1721094501511,6.3327,157.91,157.86,6.3347]
[1721094501808,6.58373781,157.92,157.83,34.73]
[1721094502012,10.0,158.0,157.91,6.3327]
[1721094502195,6.3316,157.94,157.84,65.0]
[1721094502594,6.3331,157.91,157.85,6.3351]
[1721094502913,6.3335,157.89,157.84,6.3355]
[1721094503086,6.3331,157.91,157.85,6.335]
[1721094503289,28.99,157.92,157.81,15.7514]
[1721094503501,6.334,157.88,157.83,6.3358]
[1721094503799,6.3343,157.87,157.81,15.7514]
[1721094504200,10.0,157.9,157.81,15.7514]
[1721094504406,45.0,157.89,157.81,15.7514]
[1721094504590,6.3347,157.86,157.81,22.0881]
[1721094504991,6.3343,157.88,157.82,6.3363]
[1721094505197,6.3343,157.88,157.83,6.3357]
[1721094505415,6.334,157.88,157.81,15.7514]
[1721094505583,18.99,157.89,157.81,22.0877]
[1721094506080,6.3342,157.88,157.82,6.3362]
[1721094506287,6.3338,157.89,157.83,6.3359]
[1721094506613,6.3344,157.87,157.81,15.7514]
[1721094507625,6.3344,157.87,157.81,22.0879]
[1721094508183,18.87588704,157.87,157.81,15.7514]
[1721094508382,6.3355,157.85,157.79,6.3373]
[1721094508611,18.99,157.88,157.81,6.3366]
[1721094509207,18.99,157.89,157.76,21.4154]
[1721094509400,6.3351,157.85,157.79,6.3371]
[1721094509610,18.99,157.89,157.77,45.0]
[1721094509611,6.3346,157.87,157.81,6.3363]
[1721094510210,18.99,157.92,157.84,6.3354]
[1721094510388,6.333,157.91,157.85,6.3349]
[1721094510584,18.99,157.92,157.77,79.73]
[1721094510788,6.3323,157.92,157.86,6.3343]
[1721094511001,16.42942845,157.97,157.8,34.73]
[1721094511198,6.3328,157.91,157.85,6.3348]
[1721094511415,6.3328,157.91,157.84,22.6454]
[1721094511621,15.8269,157.96,157.84,22.6454]
[1721094511819,6.3318,157.94,157.85,45.0]
[1721094512122,6.3318,157.94,157.86,1.26492078]
[1721094512425,35.41942845,157.97,157.87,6.3339]
[1721094512616,6.3327,157.91,157.85,45.0]
[1721094512831,6.3322,157.93,157.87,6.3339]
[1721094513201,6.3327,157.91,157.85,51.3348]
[1721094513401,6.3336,157.89,157.84,22.6454]
[1721094514613,6.3331,157.91,157.84,22.6454]
[1721094514814,18.99,157.94,157.84,22.6454]
[1721094515016,63.99,157.93,157.84,22.6454]
[1721094515203,25.8283,157.95,157.86,6.3346]
[1721094515521,6.3323,157.93,157.87,6.3342]
[1721094515701,6.3319,157.93,157.84,22.6454]
[1721094515899,6.42942845,157.97,157.88,6.3335]
[1721094516127,6.3315,157.94,157.85,45.0]
[1721094516311,6.42942845,157.97,157.85,45.0]
[1721094517012,6.332,157.93,157.87,6.334]
[1721094517218,6.3324,157.92,157.87,6.334]
[1721094517619,6.29282657,157.93,157.87,6.334]
[1721094518120,6.3327,157.91,157.85,51.3347]
[1721094518423,28.99,157.95,157.84,22.6454]
[1721094518617,6.3328,157.91,157.85,26.3347]
[1721094518921,6.3333,157.9,157.85,6.3347]
[1721094519124,28.99,157.95,157.84,22.6454]
[1721094519331,6.3336,157.89,157.84,28.9808]
[1721094519627,6.3327,157.92,157.86,6.3346]
[1721094519804,6.3329,157.91,157.86,6.3346]
[1721094520000,18.99,157.94,157.84,22.6454]
[1721094520001,6.3332,157.9,157.85,6.335]
[1721094520231,6.3336,157.89,157.84,28.9809]
[1721094520807,6.3331,157.9,157.85,6.3351]
[1721094521903,6.3326,157.92,157.86,6.3345]
[1721094522107,18.99,157.94,157.88,6.3339]
[1721094522108,6.3319,157.93,157.88,6.3339]
[1721094522507,6.29376147,157.93,157.88,6.3339]
[1721094523134,6.3323,157.92,157.86,6.3343]
[1721094523319,6.3328,157.91,157.86,6.3343]
[1721094523627,6.3331,157.9,157.85,6.3351]
[1721094523930,6.3331,157.9,157.84,53.5054]
[1721094523931,6.3327,157.91,157.86,6.3346]
[1721094524232,18.99,157.93,157.87,6.3342]
[1721094524233,6.3322,157.93,157.87,6.3342]
[1721094524434,6.3322,157.93,157.88,6.3338]
[1721094524652,10.0,157.96,157.84,53.5054]
[1721094524831,10.0,157.94,157.84,53.5054]
[1721094525131,18.99,157.93,157.84,53.5054]
[1721094525329,6.3338,157.89,157.84,59.8408]
[1721094525634,18.99,157.93,157.84,53.5054]
[1721094526335,6.334,157.88,157.84,22.6454]
[1721094526549,6.3335,157.89,157.84,22.6454]
[1721094527132,6.3335,157.89,157.84,28.9808]
[1721094527358,6.3339,157.88,157.84,22.6454]
[1721094528157,28.99,157.91,157.84,22.6454]
[1721094528327,18.99,157.92,157.84,22.6454]
[1721094528534,6.3334,157.9,157.84,28.9808]
[1721094528742,6.3339,157.88,157.84,22.6454]
[1721094528959,6.3335,157.89,157.84,28.9809]
[1721094529151,6.29887888,157.89,157.84,28.9809]
[1721094529350,6.334,157.88,157.84,16.6429]
[1721094529677,6.3343,157.87,157.84,16.6429]
[1721094530145,6.3339,157.88,157.84,16.6429]
[1721094530358,28.99,157.91,157.84,16.6429]
[1721094530660,6.3338,157.89,157.84,22.9783]
[1721094531860,18.99,157.92,157.85,6.3348]
[1721094532766,6.3323,157.92,157.87,6.3342]
[1721094532993,6.29640043,157.92,157.87,6.3342]
[1721094533147,6.3327,157.91,157.87,6.3342]
[1721094533344,6.3327,157.91,157.85,6.3347]
[1721094534159,6.29388934,157.9,157.85,6.3347]
[1721094534541,6.3327,157.91,157.86,6.3347]
[1721094536347,6.3331,157.9,157.86,6.3347]
[1721094536550,6.3335,157.89,157.84,47.5029]
[1721094537180,25.323,157.91,157.84,47.5029]
[1721094538166,25.323,157.91,157.86,6.3346]
[1721094538369,15.8286,157.95,157.84,30.86]
[1721094538370,10.0,157.88,157.84,30.86]
[1721094538559,10.0,157.88,157.8,28.6109]
[1721094538560,18.99,157.87,157.8,28.6109]
[1721094538756,18.99,157.87,157.81,6.3366]
[1721094538960,6.30058353,157.85,157.8,22.2739]
[1721094539157,18.99,157.87,157.8,28.6106]
[1721094539475,6.335,157.86,157.8,28.6106]
[1721094539980,6.3352,157.85,157.8,22.3662]
[1721094540158,6.29853116,157.85,157.8,22.3662]
[1721094540355,6.29853116,157.85,157.8,16.0295]
[1721094540655,18.99,157.87,157.76,22.2126]
[1721094540656,18.99,157.86,157.76,22.2126]
[1721094540862,6.3359,157.84,157.79,6.3372]
[1721094541573,6.3359,157.84,157.76,22.2126]
[1721094541574,22.4352,157.9,157.78,30.86]
[1721094541755,63.99,157.89,157.78,30.86]
[1721094542072,63.99,157.89,157.79,0.83204743]
[1721094542754,6.3343,157.88,157.8,0.83199471]
[1721094542963,6.3335,157.89,157.84,16.5506]
[1721094543271,6.3324,157.92,157.87,6.3339]
[1721094544080,6.3324,157.92,157.86,6.3346]
[1721094544455,6.58090371,157.94,157.87,6.3342]
[1721094544857,6.3323,157.93,157.87,6.3342]
[1721094545057,6.29746959,157.93,157.87,6.3342]
[1721094545257,12.91240371,157.94,157.88,6.3338]
[1721094545563,6.3315,157.94,157.88,6.3338]
[1721094545866,6.3315,157.94,157.89,6.3335]
[1721094546078,12.90988006,157.96,157.87,30.86]
[1721094546252,6.331,157.96,157.9,6.333]
[1721094546450,6.3314,157.95,157.89,6.3334]
[1721094547467,6.29635775,157.95,157.89,6.3334]
[1721094548054,6.3307,157.96,157.87,30.86]
[1721094548254,6.3307,157.96,157.88,65.0]
[1721094548757,6.29555185,157.96,157.9,6.333]
[1721094548969,6.3312,157.95,157.9,6.333]
[1721094550881,6.3318,157.94,157.88,20.0]
[1721094551069,6.3319,157.93,157.88,6.3335]
[1721094551264,6.29589133,157.93,157.88,6.3335]
[1721094551460,6.29589133,157.93,157.87,6.3342]
[1721094551969,28.99,157.97,157.88,6.3338]
[1721094552150,6.3318,157.94,157.88,6.3338]
[1721094552474,6.3322,157.93,157.87,6.3342]
[1721094552852,6.3315,157.94,157.84,53.6499]
[1721094553057,6.3315,157.94,157.85,65.0]
[1721094553269,6.29527115,157.94,157.89,6.3335]
[1721094553456,18.99,157.97,157.9,6.3331]
[1721094553457,6.3311,157.95,157.9,6.3331]
[1721094554462,6.3307,157.96,157.9,6.3331]
[1721094554679,6.3298,157.99,157.9,30.86]
[1721094554987,6.3283,158.02,157.97,6.3302]
[1721094555275,25.816,158.07,157.99,6.3293]
[1721094555591,6.57749859,158.05,157.98,6.3298]
[1721094555767,6.3282,158.03,157.97,6.3302]
[1721094556292,35.56749859,158.05,157.95,6.3308]
[1721094556496,6.329,158.01,157.95,6.3308]
[1721094556868,6.3291,158.0,157.95,6.3308]
[1721094557504,6.329,158.01,157.93,30.86]
[1721094557677,32.39599859,158.05,157.93,30.86]
[1721094557678,6.3297,157.99,157.94,6.3313]
[1721094558291,6.329,158.01,157.96,6.3305]
[1721094558496,6.3291,158.0,157.94,30.86]
[1721094558696,6.3296,157.99,157.94,37.1914]
[1721094559195,6.329,158.01,157.94,30.86]
[1721094559571,6.3291,158.0,157.94,37.1911]
[1721094559980,6.3291,158.0,157.95,6.3309]
[1721094560494,6.29265248,158.0,157.95,6.3309]
[1721094561696,6.25696912,158.0,157.95,6.3309]
[1721094562900,6.3296,157.99,157.94,30.86]
[1721094563084,6.29277255,157.98,157.93,6.3315]
[1721094563285,6.3303,157.97,157.92,6.4717]
[1721094563475,6.3303,157.97,157.91,46.3307]
[1721094563793,6.3308,157.96,157.91,52.6634]
[1721094563990,6.29638755,157.96,157.91,52.6634]
[1721094564297,28.99,157.99,157.91,52.6634]
[1721094564298,6.3311,157.95,157.91,46.3307]
[1721094564476,28.99,157.99,157.91,46.3307]
[1721094564477,6.3307,157.97,157.91,46.3307]
[1721094564793,15.8189,158.04,157.95,6.331]
[1721094565093,63.99,158.03,157.95,6.331]
[1721094565303,45.0,158.03,157.91,46.3307]
[1721094565487,6.3279,158.03,157.97,6.3299]
[1721094565686,34.36727215,158.07,157.98,6.3295]
[1721094565687,25.816,158.07,157.98,6.3295]
[1721094565878,6.3282,158.03,157.98,6.3295]
[1721094566591,6.3279,158.03,157.98,6.3298]
[1721094567294,6.3275,158.05,157.99,6.3294]
[1721094567488,6.3275,158.05,157.97,46.4046]
[1721094567689,6.28959168,158.05,158.0,6.3289]
[1721094568586,6.3275,158.04,157.99,6.3294]
[1721094568786,6.3275,158.04,157.99,7.59382436]
[1721094569180,35.56821391,158.07,157.97,52.7347]
[1721094569998,6.29214216,158.01,157.97,15.5446]
[1721094570384,6.3283,158.02,157.97,21.8749]
[1721094570796,45.0,158.06,157.97,16.80707721]
[1721094571008,6.57821391,158.07,158.0,6.3291]
[1721094571188,6.53925924,158.07,158.0,6.3291]
[1721094571696,6.3271,158.05,158.0,6.3291]
[1721094571894,12.86555924,158.07,158.01,1.2656068]
[1721094572086,6.3259,158.08,158.02,7.59337019]
[1721094572489,6.3255,158.09,158.02,1.26547019]
[1721094572700,6.3255,158.09,158.04,6.3274]
[1721094573106,6.3255,158.09,158.03,6.3278]
[1721094573410,6.3255,158.09,158.04,6.3274]
[1721094573617,16.1293,158.14,158.04,6.3274]
[1721094573804,6.29107359,158.09,158.03,6.3278]
[1721094574304,6.3261,158.08,158.03,6.3278]
[1721094574507,28.99,158.12,158.02,30.86]
[1721094575091,63.95321949,158.11,158.02,30.86]
[1721094575292,63.95321949,158.11,157.99,30.86]
[1721094575509,18.99,158.09,157.99,30.86]
[1721094576210,18.95310931,158.1,157.99,30.86]
[1721094576410,44.96321949,158.11,157.99,30.86]
[1721094576800,44.96321949,158.11,158.0,45.0]
[1721094577011,63.95321949,158.11,158.0,45.0]
[1721094577301,16.1293,158.14,158.01,30.86]
[1721094577617,6.3256,158.09,158.03,6.3275]
[1721094577822,6.3256,158.09,158.02,45.0]
[1721094578313,6.3256,158.09,158.01,30.86]
[1721094578496,6.3259,158.08,158.03,6.3278]
[1721094578809,63.99,158.13,158.01,30.86]
[1721094579018,63.99,158.13,158.03,15.7002]
[1721094579198,6.3255,158.09,158.04,6.3274]
[1721094579691,18.95299628,158.12,158.04,1.26456974]
[1721094580092,6.3251,158.1,158.05,6.3267]
[1721094580302,6.3251,158.1,158.05,6.3271]
[1721094580503,63.99,158.13,158.03,21.7462]
[1721094580919,15.8119,158.11,158.03,21.7462]
[1721094581218,6.3255,158.09,158.04,6.3275]
[1721094581424,73.95288475,158.13,158.03,21.7462]
[1721094581803,6.3258,158.09,158.04,6.3274]
[1721094582300,6.3251,158.1,158.05,6.3271]
[1721094583102,6.3255,158.09,158.04,6.3274]
[1721094583299,6.28815966,158.09,158.04,6.3274]
[1721094583496,6.326,158.08,158.03,21.7462]
[1721094583704,6.326,158.08,158.03,28.0737]
[1721094583910,73.95288475,158.13,158.03,21.7462]
[1721094584116,6.3259,158.08,158.03,28.0737]
[1721094584521,6.3263,158.07,158.03,21.7462]
[1721094585624,6.3254,158.1,158.04,6.3275]
[1721094586217,6.3256,158.09,158.04,6.3275]
[1721094586519,6.3259,158.08,158.04,6.3275]
[1721094586722,6.3259,158.08,158.03,28.074]
[1721094587515,6.28623179,158.08,158.03,28.074]
[1721094587916,6.3263,158.07,158.03,15.7002]
[1721094588725,6.3259,158.08,158.03,22.028]
[1721094589430,6.3267,158.06,158.01,6.3286]
[1721094589631,6.3267,158.06,157.99,53.6628]
[1721094589928,6.3263,158.07,158.02,6.3282]
[1721094590322,6.28827692,158.07,158.02,6.3282]
[1721094591628,6.25002224,158.07,158.02,6.3282]
[1721094592206,18.99,158.12,158.0,20.0]
[1721094592421,18.99,158.1,158.0,20.0]
[1721094592728,28.99,158.09,157.99,53.6628]
[1721094592916,6.3254,158.1,158.04,6.3274]
[1721094593122,10.0,158.11,158.03,6.3278]
[1721094593426,6.3268,158.06,157.99,22.8028]
[1721094594817,6.3263,158.07,157.99,22.8028]
[1721094595014,6.3259,158.08,158.02,6.3281]
[1721094595233,6.28821912,158.08,158.03,6.3276]
[1721094595635,6.3264,158.07,158.01,6.3283]
[1721094596035,6.3259,158.08,157.99,22.8028]
[1721094596222,18.99,158.09,157.99,53.6628]
[1721094596822,55.0,158.1,157.99,53.6628]
[1721094597345,73.99,158.1,157.99,53.6628]
[1721094598212,44.805,158.08,157.99,53.6628]
[1721094598536,6.327,158.06,158.0,6.329]
[1721094598852,6.3277,158.04,157.99,22.8028]
[1721094599440,6.3271,158.05,157.99,29.1321]
[1721094599624,6.3271,158.05,158.0,6.3289]
[1721094599824,45.0,158.1,157.99,22.8028]
[1721094600028,6.3262,158.08,158.03,6.3277]
[1721094600431,6.3254,158.1,158.04,1.26515985]
[1721094600736,31.9382,158.14,158.04,6.3273]
[1721094600737,6.3256,158.09,158.04,6.3273]
[1721094601319,6.1293,158.14,158.02,30.86]
[1721094601532,8.4910674,158.15,158.05,30.86]
[1721094601841,6.3255,158.09,158.05,30.86]
[1721094602140,6.3254,158.1,158.04,6.3272]
[1721094602340,28.99,158.12,158.03,16.5577]
[1721094602517,6.3259,158.08,158.03,22.8855]
[1721094602718,6.3263,158.07,158.03,16.5577]
[1721094602915,6.3271,158.05,158.03,16.5577]